fUST/lending_fUST_20250806
["ID","MTS","AMOUNT","RATE_DAILY","PERIOD"]
[377677531,1754487055275,-589.38,0.00032268,30]
[377677532,1754487055285,-510.34,0.00032268,120]
[377677533,1754487055296,-460.0,0.00032268,120]
[377677534,1754487055306,-589.38,0.00032268,30]
[377677535,1754487055316,-510.34,0.00032268,120]
[377677536,1754487055326,-6411.89,0.00032268,120]
[377677537,1754487055335,-460.0,0.00032268,120]
[377677538,1754487055345,-589.38,0.00032268,30]
[377677539,1754487055355,-510.34,0.00032268,120]
[377677540,1754487055365,-460.0,0.00032268,120]
[377677541,1754487055375,-6412.12,0.00032268,120]
[377677542,1754487055384,-589.38,0.00032268,30]
[377677543,1754487055394,-510.34,0.00032268,120]
[377677544,1754487055405,-460.0,0.00032268,120]
[377677545,1754487055415,-589.38,0.00032268,30]
[377677546,1754487055424,-510.34,0.00032268,120]
[377677547,1754487055434,-460.0,0.00032268,120]
[377677548,1754487055445,-589.38,0.00032268,30]
[377677549,1754487055454,-510.34,0.00032268,120]
[377677550,1754487055464,-360.51839055,0.00032268,120]
[377677551,1754487055478,-589.38,0.00032268,30]
[377677552,1754487055487,-510.34,0.00032268,120]
[377677553,1754487055497,-589.38,0.00032268,30]
[377677554,1754487055507,-510.34,0.00032268,120]
[377677555,1754487055516,-589.38,0.00032268,30]
[377677556,1754487055525,-510.34,0.00032268,120]
[377677557,1754487055535,-589.38,0.00032268,30]
[377677558,1754487055544,-589.38,0.00032268,30]
[377677559,1754487055553,-589.38,0.00032268,30]
[377677560,1754487055569,-589.42,0.00032268,30]
[377677561,1754487055578,-460.0,0.00032268,120]
[377677562,1754487055588,-460.0,0.00032268,120]
[377677563,1754487055597,-460.0,0.00032268,120]
[377677564,1754487055607,-510.34,0.00032268,120]
[377677565,1754487055615,-510.34,0.00032268,120]
[377677566,1754487055625,-460.0,0.00032268,120]
[377677567,1754487055635,-510.34,0.00032268,120]
[377677568,1754487055644,-460.0,0.00032268,120]
[377677569,1754487055654,-469.6574184,0.00032268,120]
[377677570,1754487055664,-510.34,0.00032268,120]
[377677571,1754487055673,-510.34,0.00032268,120]
[377677572,1754487055682,-510.34,0.00032268,120]
[377677573,1754487055692,-510.34,0.00032268,120]
[377677574,1754487055701,-460.0,0.00032268,120]
[377677575,1754487055710,-510.34,0.00032268,120]
[377677576,1754487055719,-460.0,0.00032268,120]
[377677577,1754487055729,-510.34,0.00032268,120]
[377677578,1754487055739,-510.34,0.00032268,120]
[377677579,1754487055748,-460.0,0.00032268,120]
[377677580,1754487055757,-510.34,0.00032268,120]
[377677581,1754487055767,-510.34,0.00032268,120]
[377677582,1754487055776,-510.34,0.00032268,120]
[377677583,1754487055785,-510.34,0.00032268,120]
[377677584,1754487055794,-460.0,0.00032268,120]
[377677585,1754487055803,-510.42,0.00032268,120]
[377677586,1754487055817,-460.0,0.00032268,120]
[377677587,1754487055826,-460.0,0.00032268,120]
[377677588,1754487055835,-460.0,0.00032268,120]
[377677589,1754487055844,-460.0,0.00032268,120]
[377677590,1754487055854,-460.0,0.00032268,120]
[377677591,1754487055863,-460.0,0.00032268,120]
[377677592,1754487055872,-460.0,0.00032268,120]
[377677593,1754487055882,-245.04736328,0.00032268,120]
[377677594,1754487055892,-460.0,0.00032268,120]
[377677595,1754487055901,-460.0,0.00032268,120]
[377677596,1754487055911,-460.0,0.00032268,120]
[377677597,1754487055921,-460.0,0.00032268,120]
[377677598,1754487055931,-460.0,0.00032268,120]
[377677599,1754487055940,-460.0,0.00032268,120]
[377677600,1754487055949,-460.0,0.00032268,120]
[377677601,1754487055959,-460.0,0.00032268,120]
[377677602,1754487055968,-460.0,0.00032268,120]
[377677603,1754487055977,-232.3,0.00032268,120]
[377677604,1754487055988,-460.0,0.00032268,120]
[377677605,1754487055997,-460.0,0.00032268,120]
[377677606,1754487056007,-460.0,0.00032268,120]
[377677607,1754487056016,-460.0,0.00032268,120]
[377677608,1754487056026,-460.0,0.00032268,120]
[377677609,1754487056035,-460.0,0.00032268,120]
[377677610,1754487056044,-460.0,0.00032268,120]
[377677611,1754487056053,-460.0,0.00032268,120]
[377677612,1754487056065,-477.23436666,0.00032268,120]
[377677613,1754487056074,-460.0,0.00032268,120]
[377677614,1754487056083,-311.54466339,0.00032268,120]
[377677615,1754487056093,-460.0,0.00032268,120]
[377677616,1754487056102,-460.0,0.00032268,120]
[377677617,1754487056111,-460.0,0.00032268,120]
[377677618,1754487056120,-215.24252838,0.00032268,120]
[377677619,1754487056141,-244.75747162,0.00032268,120]
[377677620,1754487056151,-460.0,0.00032268,120]
[377677621,1754487056160,-460.0,0.00032268,120]
[377677622,1754487056169,-460.0,0.00032268,120]
[377677623,1754487056179,-460.0,0.00032268,120]
[377677624,1754487056188,-460.0,0.00032268,120]
[377677625,1754487056198,-460.0,0.00032268,120]
[377677626,1754487056207,-460.0,0.00032268,120]
[377677627,1754487056216,-460.0,0.00032268,120]
[377677628,1754487056226,-460.0,0.00032268,120]
[377677629,1754487056235,-460.0,0.00032268,120]
[377677630,1754487056244,-460.0,0.00032268,120]
[377677631,1754487056253,-460.0,0.00032268,120]
[377677632,1754487056262,-460.0,0.00032268,120]
[377677633,1754487056271,-304.67405227,0.00032268,120]
[377677634,1754487056706,-21.6077451,0.00032268,120]
[377677635,1754487080490,150.0,0.00023963,2]
[377677637,1754487218063,150.0,0.00024103,2]
[377677638,1754487339604,987.82,0.00030137,120]
[377677640,1754487731945,-205.027795,0.00024738,2]
[377677642,1754487923635,161.128533,0.00013699,2]
[377677643,1754487924714,161.128533,0.00020548,2]
[377677644,1754487937966,309.0,0.00030137,120]
[377677645,1754488025115,-167.971719,0.00025018,2]
[377677646,1754488025139,-165.95780041,0.00025479,2]
[377677647,1754488025171,-1933.73298011,0.00025578,3]
[377677648,1754488025195,-25.92342574,0.00025678,2]
[377677649,1754488025228,-1758.21881456,0.00025678,2]
[377677650,1754488025251,-202.46695907,0.00025678,2]
[377677651,1754488025275,-500.0,0.00025773,2]
[377677652,1754488025298,-500.0,0.00025773,2]
[377677653,1754488025320,-152.35488564,0.00025773,2]
[377677654,1754488052092,-101.98690995,0.00025773,2]
[377677655,1754488052112,-310.95236377,0.00025773,2]
[377677668,1754488231810,-1151.46695862,0.0002558,3]
[377677670,1754488231923,-717.72688854,0.0002558,3]
[377677673,1754488231933,-34.42216762,0.0002568,2]
[377677713,1754488237685,-1526.70229266,0.0002568,2]
[377677714,1754488237695,-189.04763623,0.00025773,2]
[377677715,1754488237705,-500.0,0.00025773,2]
[377677716,1754488237714,-500.0,0.00025773,2]
[377677717,1754488237724,-500.0,0.00025773,2]
[377677718,1754488237734,-1200.0,0.00025777,2]
[377677719,1754488237745,-500.0,0.00025779,2]
[377677720,1754488237755,-500.0,0.00025779,2]
[377677721,1754488237764,-500.0,0.00025779,2]
[377677722,1754488237778,-239.09764047,0.00025779,2]
[377677723,1754488237790,-492.04210107,0.00025779,2]
[377677725,1754488237800,-1191.67644276,0.0002578,2]
[377677726,1754488237812,-23708.32355724,0.0002578,2]
[377677727,1754488237823,-50000.0,0.0002578,2]
[377677728,1754488237832,-1002.58499416,0.00026321,2]
[377677729,1754488237841,-358.656,0.00026452,13]
[377677730,1754488237851,-1869.19384691,0.00026522,5]
[377677731,1754488237860,-161.128533,0.00027397,2]
[377677732,1754488237869,-1869.19384691,0.00027464,7]
[377677733,1754488237878,-9462.66322363,0.00027543,2]
[377677734,1754488237907,-3108.83422844,0.00027543,2]
[377677735,1754488237919,-4712.77676424,0.00027543,2]
[377677736,1754488237930,-455.18249544,0.00027543,2]
[377677737,1754488237942,-2998.44269599,0.00027543,2]
[377677738,1754488237954,-652.66070144,0.00027543,2]
[377677739,1754488237965,-8848.14858597,0.00027543,2]
[377677740,1754488237976,-4566.6366676,0.00027543,2]
[377677754,1754488241761,-2455.75351156,0.00027543,2]
[377677755,1754488241777,-9020.63239702,0.00027543,2]
[377677798,1754488245783,-27233.35374967,0.00027543,2]
[377677799,1754488245793,-279.09242911,0.00027543,2]
[377677800,1754488245803,-160.0,0.00027553,3]
[377677801,1754488245812,-461.26544088,0.00027553,3]
[377677802,1754488245821,-527.46908335,0.00027553,3]
[377677803,1754488245831,-842.45170444,0.00027553,3]
[377677804,1754488245841,-1419.86788327,0.00027553,3]
[377677805,1754488245903,-3326.08508883,0.00027553,3]
[377677806,1754488245955,-1436.24338118,0.00027553,3]
[377677807,1754488276299,1649.95,0.00025018,2]
[377677808,1754488306205,1649.94,0.00025018,2]
[377677809,1754488345229,167.97172,0.00024927,2]
[377677810,1754488371805,5799.825624,0.00024778,2]
[377677811,1754488371829,10000.0,0.00024778,2]
[377677812,1754488371853,9100.174376,0.00024778,2]
[377677813,1754488397564,600.0,0.00025,2]
[377677814,1754488424895,299.825624,0.00025,2]
[377677815,1754488424917,437.924376,0.00025,2]
[377677817,1754488643676,897.16,0.00030137,120]
[377677829,1754488830967,150.5,0.0002998,120]
[377677830,1754488831801,150.5,0.0002997,120]
[377677831,1754488832483,150.5,0.0002996,120]
[377677833,1754488982583,161.128533,0.00013699,2]
[377677834,1754488982807,161.128533,0.00021918,2]
[377677835,1754489014619,2000.0,0.00030137,120]
[377677836,1754489144126,-205.027795,0.00025134,2]
[377677837,1754489144150,-664.86162069,0.00025443,2]
[377677838,1754489144173,-160.0,0.00025775,2]
[377677839,1754489144197,-150.0,0.00025779,2]
[377677840,1754489144229,-665.25668654,0.00026169,5]
[377677841,1754489150254,443.24108046,0.00024069,2]
[377677842,1754489156280,307.615,0.00030136,120]
[377677843,1754489236123,-749.7878229,0.00026169,5]
[377677844,1754489237107,-311.30406593,0.00026169,5]
[377677845,1754489237146,-240.29373853,0.00026169,5]
[377677846,1754489237168,-300.0,0.00026367,2]
[377677847,1754489237194,-500.0,0.00026368,2]
[377677848,1754489237215,-500.0,0.00026368,2]
[377677849,1754489237236,-214.94450273,0.00026368,2]
[377677850,1754489237257,-500.0,0.00026368,2]
[377677851,1754489237279,-500.0,0.00026368,2]
[377677852,1754489237299,-351.1230634,0.00026368,2]
[377677853,1754489237321,-500.0,0.00026368,2]
[377677854,1754489237341,-500.0,0.00026368,2]
[377677855,1754489237361,-511.85193032,0.00026368,2]
[377677856,1754489237381,-500.0,0.00026368,2]
[377677857,1754489237404,-500.0,0.00026368,2]
[377677858,1754489237424,-500.0,0.00026368,2]
[377677859,1754489237447,-500.0,0.00026368,2]
[377677860,1754489237467,-500.0,0.00026368,2]
[377677861,1754489237489,-500.0,0.00026368,2]
[377677862,1754489237511,-500.0,0.00026368,2]
[377677863,1754489237532,-500.0,0.00026368,2]
[377677864,1754489237555,-500.0,0.00026368,2]
[377677865,1754489237577,-288.5191533,0.00026368,2]
[377677866,1754489237597,-500.0,0.00026368,2]
[377677867,1754489237620,-500.0,0.00026368,2]
[377677868,1754489237642,-216.90795045,0.00026368,2]
[377677869,1754489237662,-263.7511017,0.00026368,2]
[377677870,1754489237684,-500.0,0.00026368,2]
[377677871,1754489237706,-308.13735957,0.00026368,2]
[377677872,1754489237728,-500.0,0.00026368,2]
[377677873,1754489237750,-500.0,0.00026368,2]
[377677874,1754489237772,-500.0,0.00026368,2]
[377677875,1754489237794,-573.69803306,0.00026368,2]
[377677876,1754489237816,-500.0,0.00026368,2]
[377677877,1754489237838,-500.0,0.00026368,2]
[377677878,1754489237860,-500.0,0.00026368,2]
[377677879,1754489237884,-500.0,0.00026368,2]
[377677880,1754489237906,-500.0,0.00026368,2]
[377677881,1754489237927,-500.0,0.00026368,2]
[377677882,1754489237948,-500.0,0.00026368,2]
[377677883,1754489237969,-500.0,0.00026368,2]
[377677884,1754489237990,-500.0,0.00026368,2]
[377677885,1754489238010,-627.40471288,0.00026368,2]
[377677886,1754489238031,-500.0,0.00026368,2]
[377677887,1754489238051,-419.67774721,0.00026368,2]
[377677888,1754489238071,-500.0,0.00026368,2]
[377677889,1754489238093,-179.28299963,0.00026368,2]
[377677925,1754489432287,-335.943438,0.00025267,2]
[377677927,1754489432297,-300.0,0.00025366,2]
[377677929,1754489432307,-300.0,0.00025366,2]
[377677932,1754489432318,-300.0,0.00025366,2]
[377677935,1754489432328,-300.0,0.00025366,2]
[377677938,1754489432337,-190.76755005,0.00025367,2]
[377677941,1754489432347,-500.0,0.00025367,2]
[377677943,1754489432357,-500.0,0.00025367,2]
[377677947,1754489432367,-500.0,0.00025367,2]
[377677951,1754489432377,-500.0,0.00025367,2]
[377677954,1754489432386,-500.0,0.00025367,2]
[377677957,1754489432396,-500.0,0.00025367,2]
[377677959,1754489432406,-500.0,0.00025367,2]
[377677962,1754489432415,-500.0,0.00025367,2]
[377677964,1754489432425,-500.0,0.00025367,2]
[377677966,1754489432434,-452.63311478,0.00025367,2]
[377677968,1754489432443,-389.95398514,0.00025367,2]
[377678379,1754489438071,-2550.51527024,0.00025168,2]
[377678380,1754489438082,-110.04601486,0.00025367,2]
[377678381,1754489438092,-500.0,0.00025367,2]
[377678382,1754489438102,-551.38577162,0.00025367,2]
[377678383,1754489438111,-500.0,0.00025367,2]
[377678384,1754489438123,-570.57164456,0.00025367,2]
[377678385,1754489438132,-500.0,0.00025367,2]
[377678386,1754489438142,-500.0,0.00025367,2]
[377678387,1754489438151,-500.0,0.00025367,2]
[377678389,1754489438160,-314.8483151,0.00025367,2]
[377678390,1754489438170,-24900.0,0.00025368,2]
[377678391,1754489438179,-501.48923229,0.00025373,2]
[377678392,1754489438189,-2550.51527015,0.00026124,4]
[377678393,1754489438198,-1200.0,0.00026368,2]
[377678394,1754489438208,-245.65820441,0.00026373,2]
[377678395,1754489438218,-286.925,0.00026444,13]
[377678396,1754489438228,-500.0,0.00026573,2]
[377678397,1754489438237,-455.69235666,0.00026573,2]
[377678398,1754489438251,-500.0,0.00026573,2]
[377678399,1754489438261,-500.0,0.00026573,2]
[377678400,1754489438270,-250.0,0.00026573,2]
[377678401,1754489438279,-49908.85221046,0.00026574,2]
[377678402,1754489438290,-155.3297504,0.00026574,2]
[377678403,1754489438300,-500.0,0.00026873,2]
[377678404,1754489438309,-500.0,0.00026873,2]
[377678405,1754489438320,-500.0,0.00026973,2]
[377678406,1754489438331,-2550.51527015,0.00027081,6]
[377678407,1754489438341,-500.0,0.00027121,2]
[377678408,1754489438350,-720.08600188,0.00027343,2]
[377678409,1754489438359,-500.0,0.00027421,5]
[377678410,1754489438368,-605.9184971,0.00027421,2]
[377678411,1754489438378,-151.0,0.00027436,2]
[377678412,1754489438387,-151.0,0.00027436,2]
[377678413,1754489438397,-151.0,0.00027436,2]
[377678414,1754489438406,-151.0,0.00027436,2]
[377678415,1754489438415,-151.0,0.00027436,2]
[377678416,1754489438425,-151.0,0.00027436,2]
[377678417,1754489438434,-151.0,0.00027436,2]
[377678418,1754489438443,-151.0,0.00027436,2]
[377678419,1754489438452,-250.0,0.00027436,2]
[377678420,1754489438461,-151.0,0.00027436,2]
[377678421,1754489438471,-250.0,0.00027436,2]
[377678422,1754489438481,-151.0,0.00027436,2]
[377678423,1754489438490,-151.0,0.00027436,2]
[377678424,1754489438499,-250.0,0.00027436,2]
[377678425,1754489438509,-300.0,0.00027436,2]
[377678426,1754489438518,-250.0,0.00027436,2]
[377678427,1754489438528,-151.0,0.00027436,2]
[377678428,1754489438539,-300.0,0.00027436,2]
[377678429,1754489438548,-151.0,0.00027436,2]
[377678430,1754489438558,-250.0,0.00027436,2]
[377678431,1754489438567,-151.0,0.00027436,2]
[377678432,1754489438576,-438.01112465,0.00027436,2]
[377678433,1754489438587,-250.0,0.00027436,2]
[377678434,1754489438596,-300.0,0.00027436,2]
[377678435,1754489438605,-151.0,0.00027436,2]
[377678436,1754489438615,-307.56471654,0.00027436,2]
[377678437,1754489438625,-250.0,0.00027436,2]
[377678438,1754489438634,-250.0,0.00027436,2]
[377678439,1754489438643,-250.0,0.00027436,2]
[377678440,1754489438653,-250.0,0.00027436,2]
[377678441,1754489438662,-250.0,0.00027436,2]
[377678442,1754489438672,-151.0,0.00027436,2]
[377678443,1754489438685,-151.0,0.00027436,2]
[377678444,1754489438695,-151.0,0.00027436,2]
[377678445,1754489438705,-151.0,0.00027436,2]
[377678446,1754489438714,-151.0,0.00027436,2]
[377678447,1754489438723,-151.0,0.00027436,2]
[377678448,1754489438734,-1390.00320498,0.00027442,2]
[377678449,1754489438743,-350129.537752,0.00027443,2]
[377678450,1754489438752,-2121.10246128,0.00027443,2]
[377678451,1754489438762,-260412.8154808,0.00027453,2]
[377678452,1754489438774,-32992.42575842,0.00027453,2]
[377678466,1754489440315,-521.51873284,0.00026573,2]
[377678467,1754489440324,-17866.6500978,0.00027453,2]
[377678476,1754489443055,-58728.10866298,0.00027453,2]
[377678477,1754489443064,-150.0,0.0002747,2]
[377678478,1754489443074,-420.0,0.0002747,2]
[377678479,1754489443083,-1642.7,0.000275,7]
[377678480,1754489443092,-2178.34,0.000275,2]
[377678481,1754489443101,-1742.08,0.000275,7]
[377678482,1754489443111,-500.0,0.00027521,5]
[377678483,1754489443120,-201.83166541,0.00027543,2]
[377678484,1754489443129,-6475.73628976,0.00027553,3]
[377678485,1754489443139,-530.27561532,0.0002798,2]
[377678486,1754489443148,-2550.51527015,0.00028037,9]
[377678487,1754489443158,-749.0,0.00028525,2]
[377678488,1754489443168,-720.08600188,0.00028544,2]
[377678489,1754489443178,-151.0,0.00028805,2]
[377678490,1754489443187,-2550.51527015,0.00028993,11]
[377678491,1754489443197,-160.0,0.00029,10]
[377678492,1754489443206,-527.46908335,0.00029,10]
[377678495,1754489443215,-200.0,0.00029004,15]
[377678496,1754489443225,-300.0,0.00029004,15]
[377678497,1754489443234,-443.24108046,0.00029069,2]
[377678498,1754489443243,-160.0,0.00029349,2]
[377678499,1754489443255,-461.26544088,0.00029349,2]
[377678500,1754489443265,-216.47163855,0.00029349,2]
[377678501,1754489443274,-160.0,0.00029349,2]
[377678502,1754489443284,-160.0,0.00029349,2]
[377678503,1754489443294,-12657.93264304,0.00029349,2]
[377678504,1754489443304,-842.45170444,0.00029349,2]
[377678505,1754489443314,-500.0,0.00029473,5]
[377678506,1754489443324,-500.0,0.00029473,5]
[377678507,1754489443333,-500.0,0.00029473,5]
[377678508,1754489443342,-622.42862508,0.00029473,5]
[377678509,1754489443351,-470.3508396,0.00029473,5]
[377678510,1754489443361,-500.0,0.00029473,5]
[377678511,1754489443370,-1535.79,0.000295,7]
[377678512,1754489443382,-720.08600188,0.00029746,2]
[377678513,1754489443391,-587.0,0.00029747,2]
[377678514,1754489443400,-265.13780766,0.00029825,2]
[377678515,1754489443409,-1000.0,0.00029835,2]
[377678516,1754489443419,-1000.0,0.00029835,2]
[377678517,1754489443428,-1000.0,0.00029835,2]
[377678519,1754489443438,-1000.0,0.00029835,2]
[377678521,1754489443448,-1000.0,0.00029835,2]
[377678522,1754489443458,-1000.0,0.00029835,2]
[377678524,1754489443467,-1000.0,0.00029835,2]
[377678526,1754489443477,-1000.0,0.00029835,2]
[377678527,1754489443486,-1000.0,0.00029835,2]
[377678528,1754489443495,-1135.77876408,0.00029835,2]
[377678529,1754489443504,-2550.51527015,0.00029949,13]
[377678530,1754489443513,-150.0,0.00029973,5]
[377678531,1754489443523,-500.0,0.00029973,5]
[377678532,1754489443532,-795.41342298,0.0002998,2]
[377678533,1754489443545,-530.27561532,0.0002999,2]
[377678534,1754489443555,-10407.1324538,0.0003,5]
[377678535,1754489443564,-100000.0,0.0003,4]
[377678536,1754489443574,-506.0,0.0003,4]
[377678537,1754489443585,-169.08448313,0.00030021,5]
[377678538,1754489443594,-991.8380123,0.00030021,5]
[377678539,1754489443605,-503.64919299,0.00030021,5]
[377678541,1754489443615,-1007.44277897,0.00030021,5]
[377678543,1754489443625,-161.128533,0.00030137,2]
[377678545,1754489443635,-500.0,0.00030137,7]
[377678546,1754489443645,-500.0,0.00030137,2]
[377678548,1754489443655,-500.0,0.00030137,15]
[377678550,1754489443664,-500.0,0.00030137,7]
[377678552,1754489443674,-500.0,0.00030137,10]
[377678554,1754489443683,-500.0,0.00030137,30]
[377678556,1754489443692,-500.0,0.00030137,30]
[377678558,1754489443702,-500.0,0.00030137,2]
[377678559,1754489443711,-150.0,0.00030173,3]
[377678561,1754489443720,-262.04048445,0.00030174,2]
[377678563,1754489443731,-265.13780766,0.0003019,2]
[377678565,1754489443741,-160.0,0.000302,7]
[377678567,1754489443750,-12657.93264304,0.000302,7]
[377678569,1754489443760,-842.45170444,0.000302,7]
[377678571,1754489443771,-461.26544088,0.000302,7]
[377678572,1754489443781,-250.0,0.00030521,5]
[377678574,1754489443792,-501.48761306,0.00030521,5]
[377678576,1754489443803,-2178.34,0.000306,2]
[377678578,1754489443812,-1742.08,0.000306,7]
[377678580,1754489443822,-1642.7,0.000308,7]
[377678582,1754489443832,-557.74,0.000309,2]
[377678583,1754489443842,-2550.51527015,0.00030906,15]
[377678585,1754489443852,-720.08600188,0.00030947,2]
[377678587,1754489443862,-242.44255519,0.00030977,120]
[377678589,1754489443872,-455.66660422,0.00031068,5]
[377678591,1754489443882,-500.0,0.0003126,5]
[377678593,1754489443893,-1373.8,0.00031383,7]
[377678595,1754489443903,-250.0,0.00031433,2]
[377678596,1754489443912,-200.0,0.00031792,15]
[377678598,1754489443921,-200.0,0.00031792,15]
[377678600,1754489443930,-300.0,0.00031792,15]
[377678602,1754489443938,-500.0,0.0003186,5]
[377678604,1754489443946,-2550.51527015,0.00031862,17]
[377678606,1754489443954,-14828.87653987,0.0003199,2]
[377684790,1754489552880,258.0,0.00026863,120]
[377684791,1754489735097,1000.0,0.00030137,120]
[377684792,1754489990226,191.871036,0.00024937,2]
[377684793,1754490189376,164.590845,0.00013699,2]
[377684794,1754490189607,164.590845,0.00021918,2]
[377684797,1754490228131,153.0,0.00025,4]
[377684798,1754490275200,2979.60809946,0.00024899,2]
[377684799,1754490280194,161.51594861,0.00024998,2]
[377684801,1754490346593,167.971719,0.00024358,2]
[377684802,1754490355231,-300.0,0.00025097,2]
[377684803,1754490355251,-67.00158736,0.00025097,2]
[377684804,1754490432656,-300.0,0.00025096,2]
[377684805,1754490432680,-227.9317524,0.00025097,2]
[377684806,1754490432705,-500.0,0.00025097,2]
[377684807,1754490432728,-368.31647946,0.00025097,2]
[377684808,1754490432750,-285.61907162,0.00025097,2]
[377684809,1754490432774,-500.0,0.00025097,2]
[377684810,1754490432795,-368.76605092,0.00025097,2]
[377684811,1754490432821,-500.0,0.00025097,2]
[377684812,1754490432845,-500.0,0.00025097,2]
[377684813,1754490432871,-500.0,0.00025097,2]
[377684814,1754490432895,-25.5492449,0.00025097,2]
[377684815,1754490458939,2874.33716102,0.00024897,2]
[377684816,1754490528677,180.79894021,0.00024,7]
[377684817,1754490559499,2454.5670524,0.00024482,2]
[377684819,1754490628230,1507.1483533,0.00024898,2]
[377684820,1754490628264,1379.55542443,0.00024898,2]
[377684870,1754490632275,-300.0,0.00025096,2]
[377684872,1754490632285,-5848.43204941,0.00025097,2]
[377684874,1754490632295,-1189.0,0.00025097,2]
[377684876,1754490632305,-300.0,0.00025097,2]
[377684878,1754490632314,-500.0,0.00025098,2]
[377684880,1754490632324,-500.0,0.00025098,2]
[377684882,1754490632333,-500.0,0.00025098,2]
[377684884,1754490632343,-500.0,0.00025098,2]
[377684886,1754490632352,-500.0,0.00025098,2]
[377684888,1754490632362,-500.0,0.00025098,2]
[377684890,1754490632372,-500.0,0.00025098,2]
[377684892,1754490632381,-500.0,0.00025098,2]
[377684895,1754490632391,-500.0,0.00025098,2]
[377684897,1754490632401,-500.0,0.00025098,2]
[377684899,1754490632411,-500.0,0.00025098,2]
[377684901,1754490632420,-500.0,0.00025098,2]
[377684903,1754490632430,-500.0,0.00025098,2]
[377684905,1754490632440,-500.0,0.00025098,2]
[377684907,1754490632450,-500.0,0.00025098,2]
[377684909,1754490632460,-500.0,0.00025098,2]
[377684911,1754490632470,-500.0,0.00025098,2]
[377684913,1754490632479,-500.0,0.00025098,2]
[377684917,1754490632490,-500.0,0.00025098,2]
[377684920,1754490632499,-500.0,0.00025098,2]
[377684922,1754490632509,-338.61561667,0.00025098,2]
[377684924,1754490632519,-24900.0,0.00025099,2]
[377684926,1754490632529,-2417.77378698,0.00025762,2]
[377684928,1754490632538,-2886.70377757,0.00025863,4]
[377684930,1754490632551,-35268.81408825,0.00025999,7]
[377684933,1754490632561,-187.98179158,0.00026,6]
[377684935,1754490632570,-285.009,0.00026575,13]
[377684936,1754490632579,-9248.82400983,0.00026773,3]
[377684941,1754490632615,-722.98,0.00026773,3]
[377684943,1754490632628,-1146.5,0.00026773,3]
[377685498,1754490638196,-7861.962421,0.00026773,3]
[377685500,1754490638208,-248.71235513,0.00026773,3]
[377685503,1754490638218,-216.47163855,0.00026773,3]
[377685505,1754490638228,-166.28519929,0.00026773,3]
[377685508,1754490638238,-12657.93264304,0.00026773,3]
[377685510,1754490638247,-842.45170444,0.00026773,3]
[377685511,1754490638257,-461.26544088,0.00026773,3]
[377685514,1754490638267,-180.02150047,0.00026773,2]
[377685515,1754490638277,-2886.70377757,0.00026829,6]
[377685518,1754490638287,-2183.31810187,0.00026846,2]
[377685519,1754490638297,-500.0,0.00026856,2]
[377685522,1754490638309,-151.0,0.00026856,2]
[377685523,1754490638319,-300.0,0.00026856,2]
[377685526,1754490638330,-300.0,0.00026856,2]
[377685527,1754490638339,-151.0,0.00026856,2]
[377685529,1754490638349,-151.0,0.00026856,2]
[377685531,1754490638358,-151.0,0.00026856,2]
[377685533,1754490638368,-151.0,0.00026856,2]
[377685535,1754490638378,-151.0,0.00026856,2]
[377685537,1754490638387,-151.0,0.00026856,2]